{"text_format":"1","workbook":"xlsx","n_sheets":2,"sheets":["使い方","2019XX"],"not_rendered":{"charts":0,"images":5,"macros":1,"external_links":0,"defined_names":2,"comments":0,"pivot_tables":0},"unopened":[],"bounds":{"document_bytes":16777216,"sheet_cells":100000,"rows_first":2000,"rows_last":500,"rows_between":2000,"halvings":0,"cell_chars":16384,"cell_head_chars":4096},"cells_cut":0,"cells_raw":0,"read":"whole","date_system":"1900"}

{"sheet":"使い方","index":0,"n_rows":86,"n_cols":2,"rows_kept":86,"cut":false,"hidden":false,"merged":[[1,1,1,13],[30,1,30,13]]}
[]
[null,"テンプレートの使い方"]
[]
[null,"このテンプレートは日々の収入、支出を入力するだけで日々の現金管理ができるテンプレートです。"]
[]
[null,"≪利用方法≫"]
[null,"①下記警告が表示される場合、「コンテンツの有効化」をクリックします。"]
[]
[]
[null,"②前月分の繰越金額を入力します。"]
[null,"③収入または支出および摘要を入力します。"]
[null,"④残高が自動計算されます。"]
[null,"⑤軽減税率は「〇」を選択します。"]
[null,"⑥翌月分はシートコピーまたはファイルをコピーして、利用します。"]
[]
[]
[]
[]
[]
[]
[]
[]
[]
[]
[]
[]
[]
[]
[]
[]
[null,"弥生会計への取込方法"]
[]
[null,"①入力シート左上にある「デスクトップにCSVファイルを保存」をクリックします。"]
[]
[]
[]
[]
[]
[]
[]
[]
[]
[]
[]
[]
[]
[]
[]
[null,"②PCのデスクトップに「現金出納帳+作成日.csv」という名前のファイルが作成されます。"]
[]
[]
[]
[]
[]
[]
[]
[]
[]
[]
[]
[]
[]
[]
[null,"③弥生会計からスマート取引取込を起動し、②ファイルを取り込みます。"]
[null,"　スマート取引取込での操作方法は動画または設定・運用ガイドをご確認ください。"]
[]
[null,"動画"]
[]
[]
[]
[]
[]
[]
[]
[]
[]
[]
[]
[]
[]
[]
[]
[null,"設定・運用ガイド"]
[]
[null,"> スマート取引取込「入出金明細ファイル取込」運用ガイド"]
[null,"> スマート取引取込「弥生会計へのデータ取込」運用ガイド"]

{"sheet":"2019XX","index":1,"n_rows":303,"n_cols":9,"rows_kept":303,"cut":false,"hidden":false,"merged":[]}
["「年」は西暦4桁または和暦で入力してください。",null,null,null,null,null,null,"現金出納帳","2019年　10月分"]
["No","年","月","日","収入","支出","軽減税率","残高","摘要（相手先／内容）"]
[null,null,null,null,"繰越",null,null,100000]
[1,2019,10,1,10800,null,"〇",{"$f":"H3+E4-F4","v":110800},"XXXXXXXXXXXXXXXXXXXXX"]
[2,2019,10,2,11000,null,null,{"$f":"H4+E5-F5","v":121800},"△△△△△△△△△△△△△△△"]
[3,2019,10,3,null,21600,"〇",100200,"■■■■■■■■■■■■■■■"]
[4,null,null,null,null,null,null,100200]
[5,null,null,null,null,null,null,100200]
[6,null,null,null,null,null,null,100200]
[7,null,null,null,null,null,null,100200]
[8,null,null,null,null,null,null,100200]
[9,null,null,null,null,null,null,100200]
[10,null,null,null,null,null,null,100200]
[11,null,null,null,null,null,null,100200]
[12,null,null,null,null,null,null,100200]
[13,null,null,null,null,null,null,100200]
[14,null,null,null,null,null,null,100200]
[15,null,null,null,null,null,null,100200]
[16,null,null,null,null,null,null,100200]
[17,null,null,null,null,null,null,100200]
[18,null,null,null,null,null,null,100200]
[19,null,null,null,null,null,null,100200]
[20,null,null,null,null,null,null,100200]
[21,null,null,null,null,null,null,100200]
[22,null,null,null,null,null,null,100200]
[23,null,null,null,null,null,null,100200]
[24,null,null,null,null,null,null,100200]
[25,null,null,null,null,null,null,100200]
[26,null,null,null,null,null,null,100200]
[27,null,null,null,null,null,null,100200]
[28,null,null,null,null,null,null,100200]
[29,null,null,null,null,null,null,100200]
[30,null,null,null,null,null,null,100200]
[31,null,null,null,null,null,null,100200]
[32,null,null,null,null,null,null,100200]
[33,null,null,null,null,null,null,100200]
[34,null,null,null,null,null,null,100200]
[35,null,null,null,null,null,null,100200]
[36,null,null,null,null,null,null,100200]
[37,null,null,null,null,null,null,100200]
[38,null,null,null,null,null,null,100200]
[39,null,null,null,null,null,null,100200]
[40,null,null,null,null,null,null,100200]
[41,null,null,null,null,null,null,100200]
[42,null,null,null,null,null,null,100200]
[43,null,null,null,null,null,null,100200]
[44,null,null,null,null,null,null,100200]
[45,null,null,null,null,null,null,100200]
[46,null,null,null,null,null,null,100200]
[47,null,null,null,null,null,null,100200]
[48,null,null,null,null,null,null,100200]
[49,null,null,null,null,null,null,100200]
[50,null,null,null,null,null,null,100200]
[51,null,null,null,null,null,null,100200]
[52,null,null,null,null,null,null,100200]
[53,null,null,null,null,null,null,100200]
[54,null,null,null,null,null,null,100200]
[55,null,null,null,null,null,null,100200]
[56,null,null,null,null,null,null,100200]
[57,null,null,null,null,null,null,100200]
[58,null,null,null,null,null,null,100200]
[59,null,null,null,null,null,null,100200]
[60,null,null,null,null,null,null,100200]
[61,null,null,null,null,null,null,100200]
[62,null,null,null,null,null,null,100200]
[63,null,null,null,null,null,null,100200]
[64,null,null,null,null,null,null,100200]
[65,null,null,null,null,null,null,100200]
[66,null,null,null,null,null,null,{"$f":"H68+E69-F69","v":100200}]
[67,null,null,null,null,null,null,100200]
[68,null,null,null,null,null,null,100200]
[69,null,null,null,null,null,null,100200]
[70,null,null,null,null,null,null,100200]
[71,null,null,null,null,null,null,100200]
[72,null,null,null,null,null,null,100200]
[73,null,null,null,null,null,null,100200]
[74,null,null,null,null,null,null,100200]
[75,null,null,null,null,null,null,100200]
[76,null,null,null,null,null,null,100200]
[77,null,null,null,null,null,null,100200]
[78,null,null,null,null,null,null,100200]
[79,null,null,null,null,null,null,100200]
[80,null,null,null,null,null,null,100200]
[81,null,null,null,null,null,null,100200]
[82,null,null,null,null,null,null,100200]
[83,null,null,null,null,null,null,100200]
[84,null,null,null,null,null,null,100200]
[85,null,null,null,null,null,null,100200]
[86,null,null,null,null,null,null,100200]
[87,null,null,null,null,null,null,100200]
[88,null,null,null,null,null,null,100200]
[89,null,null,null,null,null,null,100200]
[90,null,null,null,null,null,null,100200]
[91,null,null,null,null,null,null,100200]
[92,null,null,null,null,null,null,100200]
[93,null,null,null,null,null,null,100200]
[94,null,null,null,null,null,null,100200]
[95,null,null,null,null,null,null,100200]
[96,null,null,null,null,null,null,100200]
[97,null,null,null,null,null,null,100200]
[98,null,null,null,null,null,null,100200]
[99,null,null,null,null,null,null,{"$f":"H101+E102-F102","v":100200}]
[100,null,null,null,null,null,null,100200]
[101,null,null,null,null,null,null,100200]
[102,null,null,null,null,null,null,100200]
[103,null,null,null,null,null,null,100200]
[104,null,null,null,null,null,null,100200]
[105,null,null,null,null,null,null,100200]
[106,null,null,null,null,null,null,100200]
[107,null,null,null,null,null,null,{"$f":"H109+E110-F110","v":100200}]
[108,null,null,null,null,null,null,100200]
[109,null,null,null,null,null,null,100200]
[110,null,null,null,null,null,null,100200]
[111,null,null,null,null,null,null,100200]
[112,null,null,null,null,null,null,100200]
[113,null,null,null,null,null,null,100200]
[114,null,null,null,null,null,null,100200]
[115,null,null,null,null,null,null,100200]
[116,null,null,null,null,null,null,100200]
[117,null,null,null,null,null,null,100200]
[118,null,null,null,null,null,null,100200]
[119,null,null,null,null,null,null,100200]
[120,null,null,null,null,null,null,100200]
[121,null,null,null,null,null,null,100200]
[122,null,null,null,null,null,null,100200]
[123,null,null,null,null,null,null,100200]
[124,null,null,null,null,null,null,100200]
[125,null,null,null,null,null,null,100200]
[126,null,null,null,null,null,null,100200]
[127,null,null,null,null,null,null,100200]
[128,null,null,null,null,null,null,100200]
[129,null,null,null,null,null,null,100200]
[130,null,null,null,null,null,null,100200]
[131,null,null,null,null,null,null,100200]
[132,null,null,null,null,null,null,100200]
[133,null,null,null,null,null,null,100200]
[134,null,null,null,null,null,null,100200]
[135,null,null,null,null,null,null,100200]
[136,null,null,null,null,null,null,100200]
[137,null,null,null,null,null,null,100200]
[138,null,null,null,null,null,null,100200]
[139,null,null,null,null,null,null,100200]
[140,null,null,null,null,null,null,100200]
[141,null,null,null,null,null,null,100200]
[142,null,null,null,null,null,null,100200]
[143,null,null,null,null,null,null,100200]
[144,null,null,null,null,null,null,100200]
[145,null,null,null,null,null,null,100200]
[146,null,null,null,null,null,null,100200]
[147,null,null,null,null,null,null,100200]
[148,null,null,null,null,null,null,100200]
[149,null,null,null,null,null,null,100200]
[150,null,null,null,null,null,null,100200]
[151,null,null,null,null,null,null,100200]
[152,null,null,null,null,null,null,100200]
[153,null,null,null,null,null,null,100200]
[154,null,null,null,null,null,null,100200]
[155,null,null,null,null,null,null,100200]
[156,null,null,null,null,null,null,100200]
[157,null,null,null,null,null,null,100200]
[158,null,null,null,null,null,null,100200]
[159,null,null,null,null,null,null,100200]
[160,null,null,null,null,null,null,100200]
[161,null,null,null,null,null,null,100200]
[162,null,null,null,null,null,null,100200]
[163,null,null,null,null,null,null,100200]
[164,null,null,null,null,null,null,100200]
[165,null,null,null,null,null,null,100200]
[166,null,null,null,null,null,null,100200]
[167,null,null,null,null,null,null,100200]
[168,null,null,null,null,null,null,100200]
[169,null,null,null,null,null,null,100200]
[170,null,null,null,null,null,null,100200]
[171,null,null,null,null,null,null,{"$f":"H173+E174-F174","v":100200}]
[172,null,null,null,null,null,null,100200]
[173,null,null,null,null,null,null,100200]
[174,null,null,null,null,null,null,100200]
[175,null,null,null,null,null,null,100200]
[176,null,null,null,null,null,null,100200]
[177,null,null,null,null,null,null,100200]
[178,null,null,null,null,null,null,100200]
[179,null,null,null,null,null,null,100200]
[180,null,null,null,null,null,null,100200]
[181,null,null,null,null,null,null,100200]
[182,null,null,null,null,null,null,100200]
[183,null,null,null,null,null,null,100200]
[184,null,null,null,null,null,null,100200]
[185,null,null,null,null,null,null,100200]
[186,null,null,null,null,null,null,100200]
[187,null,null,null,null,null,null,100200]
[188,null,null,null,null,null,null,100200]
[189,null,null,null,null,null,null,100200]
[190,null,null,null,null,null,null,100200]
[191,null,null,null,null,null,null,100200]
[192,null,null,null,null,null,null,100200]
[193,null,null,null,null,null,null,100200]
[194,null,null,null,null,null,null,100200]
[195,null,null,null,null,null,null,100200]
[196,null,null,null,null,null,null,100200]
[197,null,null,null,null,null,null,100200]
[198,null,null,null,null,null,null,100200]
[199,null,null,null,null,null,null,100200]
[200,null,null,null,null,null,null,100200]
[201,null,null,null,null,null,null,100200]
[202,null,null,null,null,null,null,100200]
[203,null,null,null,null,null,null,100200]
[204,null,null,null,null,null,null,100200]
[205,null,null,null,null,null,null,100200]
[206,null,null,null,null,null,null,100200]
[207,null,null,null,null,null,null,100200]
[208,null,null,null,null,null,null,100200]
[209,null,null,null,null,null,null,100200]
[210,null,null,null,null,null,null,100200]
[211,null,null,null,null,null,null,100200]
[212,null,null,null,null,null,null,100200]
[213,null,null,null,null,null,null,100200]
[214,null,null,null,null,null,null,100200]
[215,null,null,null,null,null,null,100200]
[216,null,null,null,null,null,null,100200]
[217,null,null,null,null,null,null,100200]
[218,null,null,null,null,null,null,100200]
[219,null,null,null,null,null,null,100200]
[220,null,null,null,null,null,null,100200]
[221,null,null,null,null,null,null,100200]
[222,null,null,null,null,null,null,100200]
[223,null,null,null,null,null,null,100200]
[224,null,null,null,null,null,null,100200]
[225,null,null,null,null,null,null,100200]
[226,null,null,null,null,null,null,100200]
[227,null,null,null,null,null,null,100200]
[228,null,null,null,null,null,null,100200]
[229,null,null,null,null,null,null,100200]
[230,null,null,null,null,null,null,100200]
[231,null,null,null,null,null,null,100200]
[232,null,null,null,null,null,null,100200]
[233,null,null,null,null,null,null,100200]
[234,null,null,null,null,null,null,100200]
[235,null,null,null,null,null,null,{"$f":"H237+E238-F238","v":100200}]
[236,null,null,null,null,null,null,100200]
[237,null,null,null,null,null,null,100200]
[238,null,null,null,null,null,null,100200]
[239,null,null,null,null,null,null,100200]
[240,null,null,null,null,null,null,100200]
[241,null,null,null,null,null,null,100200]
[242,null,null,null,null,null,null,100200]
[243,null,null,null,null,null,null,100200]
[244,null,null,null,null,null,null,100200]
[245,null,null,null,null,null,null,100200]
[246,null,null,null,null,null,null,100200]
[247,null,null,null,null,null,null,100200]
[248,null,null,null,null,null,null,100200]
[249,null,null,null,null,null,null,100200]
[250,null,null,null,null,null,null,100200]
[251,null,null,null,null,null,null,100200]
[252,null,null,null,null,null,null,100200]
[253,null,null,null,null,null,null,100200]
[254,null,null,null,null,null,null,100200]
[255,null,null,null,null,null,null,100200]
[256,null,null,null,null,null,null,100200]
[257,null,null,null,null,null,null,100200]
[258,null,null,null,null,null,null,100200]
[259,null,null,null,null,null,null,100200]
[260,null,null,null,null,null,null,100200]
[261,null,null,null,null,null,null,100200]
[262,null,null,null,null,null,null,100200]
[263,null,null,null,null,null,null,100200]
[264,null,null,null,null,null,null,100200]
[265,null,null,null,null,null,null,100200]
[266,null,null,null,null,null,null,100200]
[267,null,null,null,null,null,null,100200]
[268,null,null,null,null,null,null,100200]
[269,null,null,null,null,null,null,100200]
[270,null,null,null,null,null,null,100200]
[271,null,null,null,null,null,null,100200]
[272,null,null,null,null,null,null,100200]
[273,null,null,null,null,null,null,100200]
[274,null,null,null,null,null,null,100200]
[275,null,null,null,null,null,null,100200]
[276,null,null,null,null,null,null,100200]
[277,null,null,null,null,null,null,100200]
[278,null,null,null,null,null,null,100200]
[279,null,null,null,null,null,null,100200]
[280,null,null,null,null,null,null,100200]
[281,null,null,null,null,null,null,100200]
[282,null,null,null,null,null,null,100200]
[283,null,null,null,null,null,null,100200]
[284,null,null,null,null,null,null,100200]
[285,null,null,null,null,null,null,100200]
[286,null,null,null,null,null,null,100200]
[287,null,null,null,null,null,null,100200]
[288,null,null,null,null,null,null,100200]
[289,null,null,null,null,null,null,100200]
[290,null,null,null,null,null,null,100200]
[291,null,null,null,null,null,null,100200]
[292,null,null,null,null,null,null,100200]
[293,null,null,null,null,null,null,100200]
[294,null,null,null,null,null,null,100200]
[295,null,null,null,null,null,null,100200]
[296,null,null,null,null,null,null,100200]
[297,null,null,null,null,null,null,100200]
[298,null,null,null,null,null,null,100200]
[299,null,null,null,null,null,null,{"$f":"H301+E302-F302","v":100200}]
[300,null,null,null,null,null,null,100200]